[Event "Late-Titled-Tuesday-Blitz-February-13-2024"]
[Site "Chess.com"]
[Date "2024.02.13"]
[Round "9"]
[White "GaiozNigalidze"]
[Black "SergioMoralesG"]
[Result "0-1"]
[WhiteElo "2649"]
[BlackElo "2539"]
[TimeControl "180+1"]
[EndTime "15:45:19 PST"]
[Termination "SergioMoralesG won on time"]

1. e4 {[%clk 0:03:00.9]} 1... c5 {[%clk 0:02:58.3]} 2. Nf3 {[%clk 0:03:00.9]}
2... e6 {[%clk 0:02:58.9]} 3. d4 {[%clk 0:03:00.8]} 3... cxd4 {[%clk 0:02:59.8]}
4. Nxd4 {[%clk 0:03:01.2]} 4... Nc6 {[%clk 0:03:00.5]} 5. Nc3 {[%clk 0:03:01.3]}
5... Qc7 {[%clk 0:03:01]} 6. a3 {[%clk 0:02:56.7]} 6... a6 {[%clk 0:03:00.3]} 7.
Be3 {[%clk 0:02:56.6]} 7... b5 {[%clk 0:02:58.8]} 8. Nxc6 {[%clk 0:02:55.7]}
8... Qxc6 {[%clk 0:02:59.1]} 9. h4 {[%clk 0:02:55.7]} 9... Bb7 {[%clk
0:02:57.4]} 10. h5 {[%clk 0:02:55.6]} 10... h6 {[%clk 0:02:56.7]} 11. Rh4 {[%clk
0:02:51.5]} 11... d6 {[%clk 0:02:34.2]} 12. Qd4 {[%clk 0:02:38.2]} 12... Nf6
{[%clk 0:02:32.8]} 13. g4 {[%clk 0:02:01.2]} 13... Be7 {[%clk 0:02:30.3]} 14. g5
{[%clk 0:01:58.4]} 14... hxg5 {[%clk 0:02:26.2]} 15. Bxg5 {[%clk 0:01:58.1]}
15... Rxh5 {[%clk 0:01:46.1]} 16. Rxh5 {[%clk 0:01:56.7]} 16... Nxh5 {[%clk
0:01:46.3]} 17. Bxe7 {[%clk 0:01:57.3]} 17... Kxe7 {[%clk 0:01:47.2]} 18. a4
{[%clk 0:01:57.9]} 18... bxa4 {[%clk 0:01:33.1]} 19. Rxa4 {[%clk 0:01:56.3]}
19... Qc5 {[%clk 0:01:20.5]} 20. Qd2 {[%clk 0:01:36.6]} 20... Nf6 {[%clk
0:01:19.6]} 21. Rc4 {[%clk 0:01:29.9]} 21... Qb6 {[%clk 0:01:06.3]} 22. Na4
{[%clk 0:01:29.4]} 22... Qd8 {[%clk 0:01:05.2]} 23. e5 {[%clk 0:00:49.9]} 23...
Nd5 {[%clk 0:00:51]} 24. Qg5+ {[%clk 0:00:29.8]} 24... Kf8 {[%clk 0:00:48.9]}
25. Qh5 {[%clk 0:00:30]} 25... dxe5 {[%clk 0:00:40.5]} 26. Qh8+ {[%clk 0:00:19]}
26... Ke7 {[%clk 0:00:40.5]} 27. Qxg7 {[%clk 0:00:19.4]} 27... Qh8 {[%clk
0:00:38.3]} 28. Qg5+ {[%clk 0:00:16.8]} 28... Qf6 {[%clk 0:00:37.6]} 29. Qd2
{[%clk 0:00:16.7]} 29... Rg8 {[%clk 0:00:32.4]} 30. Qa5 {[%clk 0:00:13.4]} 30...
Kf8 {[%clk 0:00:21]} 31. Qc5+ {[%clk 0:00:11]} 31... Qe7 {[%clk 0:00:20.4]} 32.
Qxe7+ {[%clk 0:00:09.7]} 32... Kxe7 {[%clk 0:00:20.1]} 33. Nc5 {[%clk
0:00:09.3]} 33... Bc8 {[%clk 0:00:19.7]} 34. Nd3 {[%clk 0:00:09.3]} 34... f6
{[%clk 0:00:16.1]} 35. Rc6 {[%clk 0:00:08.5]} 35... Bb7 {[%clk 0:00:14.3]} 36.
Rc4 {[%clk 0:00:07.9]} 36... Rg1 {[%clk 0:00:13.6]} 37. f3 {[%clk 0:00:06.6]}
37... Kd6 {[%clk 0:00:12.8]} 38. Kf2 {[%clk 0:00:05.7]} 38... Rh1 {[%clk
0:00:12]} 39. Ra4 {[%clk 0:00:05.4]} 39... Rh2+ {[%clk 0:00:10.8]} 40. Bg2
{[%clk 0:00:04.5]} 40... Nc7 {[%clk 0:00:05.5]} 41. Kg3 {[%clk 0:00:03]} 41...
Rh8 {[%clk 0:00:04.5]} 42. c4 {[%clk 0:00:03.4]} 42... Rg8+ {[%clk 0:00:04.8]}
43. Kf2 {[%clk 0:00:03.7]} 43... Bc6 {[%clk 0:00:05.7]} 44. c5+ {[%clk
0:00:03.8]} 44... Kd7 {[%clk 0:00:05.5]} 45. Rb4 {[%clk 0:00:04.2]} 45... Nd5
{[%clk 0:00:03.8]} 46. Rb3 {[%clk 0:00:03.4]} 46... Nf4 {[%clk 0:00:04]} 47.
Nxf4 {[%clk 0:00:03]} 47... exf4 {[%clk 0:00:04.9]} 48. Rb6 {[%clk 0:00:02.6]}
48... e5 {[%clk 0:00:04]} 49. Rxa6 {[%clk 0:00:01.5]} 49... Rb8 {[%clk
0:00:04.3]} 50. Ra7+ {[%clk 0:00:01.7]} 50... Ke8 {[%clk 0:00:03.6]} 0-1

[Event "Late-Titled-Tuesday-Blitz-February-13-2024"]
[Site "Chess.com"]
[Date "2024.02.13"]
[Round "9"]
[White "dosto07"]
[Black "Hirna2005"]
[Result "0-1"]
[WhiteElo "2496"]
[BlackElo "2316"]
[TimeControl "180+1"]
[EndTime "15:45:20 PST"]
[Termination "Hirna2005 won on time"]

1. e4 {[%clk 0:02:47.3]} 1... g6 {[%clk 0:03:00.2]} 2. d4 {[%clk 0:02:46.8]}
2... Bg7 {[%clk 0:03:00.6]} 3. Nf3 {[%clk 0:02:47.5]} 3... d6 {[%clk 0:03:01.1]}
4. Nc3 {[%clk 0:02:47.9]} 4... a6 {[%clk 0:03:01]} 5. a4 {[%clk 0:02:47.9]} 5...
Nc6 {[%clk 0:03:00.8]} 6. Be2 {[%clk 0:02:47.8]} 6... e5 {[%clk 0:03:00.9]} 7.
dxe5 {[%clk 0:02:47.2]} 7... Nxe5 {[%clk 0:02:58.9]} 8. Nxe5 {[%clk 0:02:47.2]}
8... Bxe5 {[%clk 0:02:59.3]} 9. Be3 {[%clk 0:02:47.1]} 9... Bg7 {[%clk
0:02:56.9]} 10. O-O {[%clk 0:02:45.7]} 10... Nf6 {[%clk 0:02:56]} 11. Qd2 {[%clk
0:02:42]} 11... O-O {[%clk 0:02:55.4]} 12. Bh6 {[%clk 0:02:41.8]} 12... Bg4
{[%clk 0:02:50.2]} 13. Bxg7 {[%clk 0:02:37.9]} 13... Kxg7 {[%clk 0:02:50]} 14.
f3 {[%clk 0:02:34.3]} 14... Be6 {[%clk 0:02:48.5]} 15. f4 {[%clk 0:02:33.5]}
15... Re8 {[%clk 0:02:32.2]} 16. Rad1 {[%clk 0:02:30]} 16... Qe7 {[%clk
0:02:11.6]} 17. Qd4 {[%clk 0:02:26.2]} 17... Bd7 {[%clk 0:02:08.4]} 18. Bc4
{[%clk 0:02:20.4]} 18... Bc6 {[%clk 0:02:03.1]} 19. Rde1 {[%clk 0:02:07.5]}
19... Rad8 {[%clk 0:01:48.7]} 20. Nd5 {[%clk 0:01:21.9]} 20... Bxd5 {[%clk
0:01:47.5]} 21. Bxd5 {[%clk 0:01:22.2]} 21... c6 {[%clk 0:01:42.8]} 22. Bb3
{[%clk 0:01:22]} 22... Kg8 {[%clk 0:01:40.7]} 23. f5 {[%clk 0:01:11.6]} 23... c5
{[%clk 0:01:21.7]} 24. Qd3 {[%clk 0:00:45.7]} 24... b5 {[%clk 0:01:16.3]} 25.
axb5 {[%clk 0:00:43.8]} 25... axb5 {[%clk 0:01:16.3]} 26. fxg6 {[%clk 0:00:44]}
26... hxg6 {[%clk 0:01:12.6]} 27. Qf3 {[%clk 0:00:34.6]} 27... Kg7 {[%clk
0:01:12.3]} 28. Bd5 {[%clk 0:00:27.5]} 28... Rh8 {[%clk 0:00:56.8]} 29. Rf2
{[%clk 0:00:17.3]} 29... Qe5 {[%clk 0:00:55.6]} 30. h3 {[%clk 0:00:17.6]} 30...
Rd7 {[%clk 0:00:51.7]} 31. Ref1 {[%clk 0:00:16.5]} 31... Nxd5 {[%clk 0:00:49.6]}
32. exd5 {[%clk 0:00:16.6]} 32... f5 {[%clk 0:00:49.1]} 33. c3 {[%clk
0:00:16.3]} 33... Re7 {[%clk 0:00:47.9]} 34. Qd3 {[%clk 0:00:14.7]} 34... c4
{[%clk 0:00:45.9]} 35. Qd2 {[%clk 0:00:14.6]} 35... Qe3 {[%clk 0:00:44.9]} 36.
Qxe3 {[%clk 0:00:10.8]} 36... Rxe3 {[%clk 0:00:45.1]} 37. Ra1 {[%clk 0:00:11.2]}
37... Rhe8 {[%clk 0:00:44.1]} 38. Ra6 {[%clk 0:00:10.5]} 38... Re1+ {[%clk
0:00:35.3]} 39. Kh2 {[%clk 0:00:10.3]} 39... R8e2 {[%clk 0:00:34.9]} 40. Rxe2
{[%clk 0:00:08.7]} 40... Rxe2 {[%clk 0:00:34.9]} 41. Rxd6 {[%clk 0:00:09.1]}
41... Rxb2 {[%clk 0:00:35]} 42. Rd7+ {[%clk 0:00:09.1]} 42... Kf6 {[%clk
0:00:34.7]} 43. Rb7 {[%clk 0:00:09.8]} 43... b4 {[%clk 0:00:31.1]} 44. cxb4
{[%clk 0:00:09.2]} 44... c3 {[%clk 0:00:31.4]} 45. Rc7 {[%clk 0:00:09.3]} 45...
c2 {[%clk 0:00:29.5]} 46. d6 {[%clk 0:00:08.6]} 46... Ke6 {[%clk 0:00:29.7]} 47.
d7 {[%clk 0:00:08.8]} 47... Ke7 {[%clk 0:00:30]} 48. Kg3 {[%clk 0:00:08.7]}
48... Kd8 {[%clk 0:00:30.2]} 49. Rc4 {[%clk 0:00:08]} 49... Kxd7 {[%clk
0:00:30.2]} 50. Kh4 {[%clk 0:00:07.9]} 50... Kd6 {[%clk 0:00:27.5]} 51. g3
{[%clk 0:00:08.1]} 51... Kd5 {[%clk 0:00:27.3]} 52. Rc8 {[%clk 0:00:08.1]} 52...
Rxb4+ {[%clk 0:00:25.4]} 53. Kg5 {[%clk 0:00:07.9]} 53... Rc4 {[%clk 0:00:25.8]}
54. Rd8+ {[%clk 0:00:06]} 54... Ke6 {[%clk 0:00:25.8]} 55. Re8+ {[%clk
0:00:06.3]} 55... Kf7 {[%clk 0:00:24.4]} 56. Re1 {[%clk 0:00:07]} 56... c1=Q+
{[%clk 0:00:24.7]} 57. Rxc1 {[%clk 0:00:07.5]} 57... Rxc1 {[%clk 0:00:25.1]} 58.
g4 {[%clk 0:00:08.4]} 58... fxg4 {[%clk 0:00:24.8]} 59. hxg4 {[%clk 0:00:08.8]}
59... Rc5+ {[%clk 0:00:24.8]} 60. Kf4 {[%clk 0:00:09.1]} 60... Kf6 {[%clk
0:00:24.9]} 61. Ke4 {[%clk 0:00:09.5]} 61... Rc4+ {[%clk 0:00:25]} 62. Kd3
{[%clk 0:00:09.9]} 62... Rxg4 {[%clk 0:00:25]} 0-1

[Event "Late-Titled-Tuesday-Blitz-February-13-2024"]
[Site "Chess.com"]
[Date "2024.02.13"]
[Round "9"]
[White "koncheto"]
[Black "GoValya"]
[Result "0-1"]
[WhiteElo "2452"]
[BlackElo "2263"]
[TimeControl "180+1"]
[EndTime "15:45:20 PST"]
[Termination "GoValya won by checkmate"]

1. e4 {[%clk 0:03:00.9]} 1... e6 {[%clk 0:02:57.4]} 2. d4 {[%clk 0:03:00.5]}
2... d5 {[%clk 0:02:55]} 3. Bd2 {[%clk 0:03:00.7]} 3... b6 {[%clk 0:02:50.8]} 4.
Bd3 {[%clk 0:02:56.1]} 4... Bb7 {[%clk 0:02:50.8]} 5. exd5 {[%clk 0:02:56.4]}
5... Bxd5 {[%clk 0:02:46.9]} 6. Nf3 {[%clk 0:02:56.3]} 6... Nf6 {[%clk
0:02:46.6]} 7. c4 {[%clk 0:02:56.6]} 7... Bb7 {[%clk 0:02:46.7]} 8. Nc3 {[%clk
0:02:57]} 8... Nc6 {[%clk 0:02:41.9]} 9. Be3 {[%clk 0:02:57.1]} 9... Be7 {[%clk
0:02:39]} 10. O-O {[%clk 0:02:55.7]} 10... O-O {[%clk 0:02:39.2]} 11. h3 {[%clk
0:02:55.3]} 11... h6 {[%clk 0:02:30.1]} 12. Qd2 {[%clk 0:02:40.7]} 12... Nb4
{[%clk 0:02:13.8]} 13. Be2 {[%clk 0:02:38.4]} 13... Ne4 {[%clk 0:02:07.5]} 14.
Nxe4 {[%clk 0:02:33.5]} 14... Bxe4 {[%clk 0:02:08.4]} 15. Rad1 {[%clk
0:02:29.9]} 15... c5 {[%clk 0:01:45.3]} 16. a3 {[%clk 0:02:04.4]} 16... Nc2
{[%clk 0:01:39.3]} 17. dxc5 {[%clk 0:01:54.7]} 17... bxc5 {[%clk 0:01:32.2]} 18.
Qc1 {[%clk 0:01:46.5]} 18... Qb6 {[%clk 0:01:17.3]} 19. Ne5 {[%clk 0:01:00.5]}
19... Rfd8 {[%clk 0:00:45.8]} 20. Nd3 {[%clk 0:00:26.5]} 20... Nxe3 {[%clk
0:00:32.9]} 21. Qxe3 {[%clk 0:00:27.4]} 21... Bg6 {[%clk 0:00:29.2]} 22. Bf3
{[%clk 0:00:25]} 22... Rab8 {[%clk 0:00:27]} 23. Rfe1 {[%clk 0:00:20.1]} 23...
Bf6 {[%clk 0:00:22.1]} 24. Be4 {[%clk 0:00:18.8]} 24... Bxe4 {[%clk 0:00:20.1]}
25. Qxe4 {[%clk 0:00:19.7]} 25... Rd4 {[%clk 0:00:20]} 26. Qf3 {[%clk
0:00:13.4]} 26... Rbd8 {[%clk 0:00:19.6]} 27. b4 {[%clk 0:00:12.4]} 27... cxb4
{[%clk 0:00:11.3]} 28. c5 {[%clk 0:00:13]} 28... Qb5 {[%clk 0:00:09]} 29. Nxb4
{[%clk 0:00:12.7]} 29... Qxc5 {[%clk 0:00:07.5]} 30. Rxd4 {[%clk 0:00:10.5]}
30... Rxd4 {[%clk 0:00:07.6]} 31. g3 {[%clk 0:00:09.9]} 31... Rc4 {[%clk
0:00:06.9]} 32. Re3 {[%clk 0:00:09.4]} 32... Rc1+ {[%clk 0:00:06.5]} 33. Kg2
{[%clk 0:00:10]} 33... Qb5 {[%clk 0:00:06.8]} 34. Qa8+ {[%clk 0:00:09.9]} 34...
Kh7 {[%clk 0:00:06.3]} 35. Qe4+ {[%clk 0:00:10.8]} 35... g6 {[%clk 0:00:06.3]}
36. Re1 {[%clk 0:00:11.7]} 36... Rxe1 {[%clk 0:00:05.6]} 37. Qxe1 {[%clk
0:00:12.6]} 37... Qb7+ {[%clk 0:00:05.7]} 38. Kg1 {[%clk 0:00:12.7]} 38... Be7
{[%clk 0:00:06.1]} 39. Nc2 {[%clk 0:00:12.2]} 39... Qc6 {[%clk 0:00:04.9]} 40.
Qe2 {[%clk 0:00:12]} 40... Qd5 {[%clk 0:00:04.7]} 41. Ne3 {[%clk 0:00:11.6]}
41... Qe4 {[%clk 0:00:04.7]} 42. Qa6 {[%clk 0:00:11.5]} 42... Bc5 {[%clk
0:00:03.8]} 43. Ng4 {[%clk 0:00:09.6]} 43... Qb1+ {[%clk 0:00:02.6]} 44. Kg2
{[%clk 0:00:09.5]} 44... Qe4+ {[%clk 0:00:02.7]} 45. Kg1 {[%clk 0:00:10.1]}
45... Qb1+ {[%clk 0:00:02.3]} 46. Kg2 {[%clk 0:00:10.3]} 46... Qf5 {[%clk
0:00:02]} 47. Kh2 {[%clk 0:00:11.2]} 47... h5 {[%clk 0:00:01.4]} 48. Qb7 {[%clk
0:00:07.2]} 48... hxg4 {[%clk 0:00:01.3]} 49. hxg4 {[%clk 0:00:07.8]} 49...
Qxf2+ {[%clk 0:00:01.4]} 50. Kh3 {[%clk 0:00:08.3]} 50... Qf1+ {[%clk 0:00:02]}
51. Kh4 {[%clk 0:00:08.9]} 51... Qh1+ {[%clk 0:00:02.2]} 52. Kg5 {[%clk
0:00:09.4]} 52... Qh6+ {[%clk 0:00:02.5]} 53. Kf6 {[%clk 0:00:09.8]} 53... Qg7+
{[%clk 0:00:02.3]} 54. Kg5 {[%clk 0:00:07.7]} 54... Be3+ {[%clk 0:00:03.2]} 55.
Kh4 {[%clk 0:00:07.2]} 55... Qh6# {[%clk 0:00:04.1]} 0-1

[Event "Late-Titled-Tuesday-Blitz-February-13-2024"]
[Site "Chess.com"]
[Date "2024.02.13"]
[Round "9"]
[White "Zampronha1971"]
[Black "wanyaland"]
[Result "0-1"]
[WhiteElo "2348"]
[BlackElo "2489"]
[TimeControl "180+1"]
[EndTime "15:45:23 PST"]
[Termination "wanyaland won by resignation"]

1. e4 {[%clk 0:02:59.6]} 1... e5 {[%clk 0:02:59.9]} 2. Nf3 {[%clk 0:02:57.2]}
2... Nc6 {[%clk 0:03:00.1]} 3. d4 {[%clk 0:02:58.1]} 3... exd4 {[%clk
0:02:59.2]} 4. Nxd4 {[%clk 0:02:56.8]} 4... Bc5 {[%clk 0:02:55]} 5. Be3 {[%clk
0:02:50.6]} 5... Qf6 {[%clk 0:02:49.2]} 6. c3 {[%clk 0:02:50.3]} 6... d6 {[%clk
0:02:46]} 7. Be2 {[%clk 0:02:23.5]} 7... Nge7 {[%clk 0:02:40.2]} 8. O-O {[%clk
0:02:22.6]} 8... Bb6 {[%clk 0:02:36.6]} 9. Nb5 {[%clk 0:02:18.5]} 9... Kd8
{[%clk 0:02:19.5]} 10. Bxb6 {[%clk 0:02:11.2]} 10... axb6 {[%clk 0:02:18.8]} 11.
f4 {[%clk 0:02:11.4]} 11... Bd7 {[%clk 0:02:15.7]} 12. Nd2 {[%clk 0:02:03.6]}
12... Kc8 {[%clk 0:02:14.2]} 13. Nb3 {[%clk 0:01:54.7]} 13... Ng6 {[%clk
0:02:10.1]} 14. g3 {[%clk 0:01:51.2]} 14... h5 {[%clk 0:02:08]} 15. Bxh5 {[%clk
0:01:47.7]} 15... Nh4 {[%clk 0:02:01.2]} 16. Bg4 {[%clk 0:01:35.5]} 16... Bxg4
{[%clk 0:01:56]} 17. Qxg4+ {[%clk 0:01:35.4]} 17... Kb8 {[%clk 0:01:55]} 18.
gxh4 {[%clk 0:01:31.6]} 18... Rxh4 {[%clk 0:01:53.5]} 19. Qg5 {[%clk 0:01:30.7]}
19... Qxg5+ {[%clk 0:01:45.4]} 20. fxg5 {[%clk 0:01:30.8]} 20... Ne5 {[%clk
0:01:45]} 21. g6 {[%clk 0:01:15.4]} 21... f6 {[%clk 0:01:44.2]} 22. Nd2 {[%clk
0:01:07]} 22... Nxg6 {[%clk 0:01:38.3]} 23. Kh1 {[%clk 0:01:07.2]} 23... Ne5
{[%clk 0:01:30.2]} 24. Rg1 {[%clk 0:01:02.9]} 24... g5 {[%clk 0:01:25.7]} 25. a3
{[%clk 0:01:00.4]} 25... Ra5 {[%clk 0:01:11.1]} 26. a4 {[%clk 0:01:00.5]} 26...
Ng4 {[%clk 0:01:07.5]} 27. Nf3 {[%clk 0:00:54.6]} 27... Rh3 {[%clk 0:00:59]} 28.
Rxg4 {[%clk 0:00:47.5]} 28... Rxf3 {[%clk 0:00:58.3]} 29. Rg3 {[%clk 0:00:43.7]}
29... Rf4 {[%clk 0:00:52.3]} 30. Re3 {[%clk 0:00:43.5]} 30... Kc8 {[%clk
0:00:50.1]} 31. b3 {[%clk 0:00:42.9]} 31... Kd7 {[%clk 0:00:48.7]} 32. Kg2
{[%clk 0:00:41.9]} 32... c6 {[%clk 0:00:47.2]} 33. Nd4 {[%clk 0:00:42]} 33...
Ra8 {[%clk 0:00:46.5]} 34. Rf1 {[%clk 0:00:40.2]} 34... Rxf1 {[%clk 0:00:38.1]}
35. Kxf1 {[%clk 0:00:41.1]} 35... Rh8 {[%clk 0:00:37]} 36. Kg2 {[%clk
0:00:41.5]} 36... Rh4 {[%clk 0:00:35.7]} 37. Kg3 {[%clk 0:00:38.9]} 37... Rf4
{[%clk 0:00:34.4]} 38. Ne2 {[%clk 0:00:35.7]} 38... Rh4 {[%clk 0:00:32.8]} 39.
Rf3 {[%clk 0:00:34.6]} 39... Ke7 {[%clk 0:00:26.8]} 40. Nd4 {[%clk 0:00:34.8]}
40... Rxe4 {[%clk 0:00:24.3]} 41. Nf5+ {[%clk 0:00:34.1]} 41... Ke6 {[%clk
0:00:22.8]} 42. Nd4+ {[%clk 0:00:33.3]} 42... Ke7 {[%clk 0:00:19.7]} 43. Kf2
{[%clk 0:00:30.9]} 43... d5 {[%clk 0:00:18.2]} 44. Re3 {[%clk 0:00:29.1]} 44...
Kd6 {[%clk 0:00:13.8]} 45. Rxe4 {[%clk 0:00:28.6]} 45... dxe4 {[%clk 0:00:14.3]}
46. Ke3 {[%clk 0:00:28.3]} 46... Ke5 {[%clk 0:00:14.8]} 47. h3 {[%clk 0:00:24]}
47... f5 {[%clk 0:00:14.9]} 48. Ne2 {[%clk 0:00:23.4]} 48... f4+ {[%clk
0:00:15]} 49. Kd2 {[%clk 0:00:23.2]} 49... f3 {[%clk 0:00:13.4]} 50. Nd4 {[%clk
0:00:21.3]} 50... Kf4 {[%clk 0:00:13.7]} 51. Ke1 {[%clk 0:00:21.4]} 51... e3
{[%clk 0:00:13.4]} 52. b4 {[%clk 0:00:20.6]} 52... Kg3 {[%clk 0:00:13]} 53. Kf1
{[%clk 0:00:20.3]} 53... e2+ {[%clk 0:00:12.3]} 54. Nxe2+ {[%clk 0:00:19.2]}
54... fxe2+ {[%clk 0:00:11.9]} 55. Kxe2 {[%clk 0:00:20.1]} 55... Kxh3 {[%clk
0:00:12.4]} 56. c4 {[%clk 0:00:19.7]} 56... g4 {[%clk 0:00:11.7]} 57. c5 {[%clk
0:00:18.1]} 57... bxc5 {[%clk 0:00:11.5]} 0-1

[Event "Late-Titled-Tuesday-Blitz-February-13-2024"]
[Site "Chess.com"]
[Date "2024.02.13"]
[Round "9"]
[White "ProfessorChess101"]
[Black "Polish_fighter3000"]
[Result "0-1"]
[WhiteElo "2792"]
[BlackElo "3059"]
[TimeControl "180+1"]
[EndTime "15:45:27 PST"]
[Termination "Polish_fighter3000 won by resignation"]

1. d4 {[%clk 0:03:00.9]} 1... g6 {[%clk 0:02:56.9]} 2. e4 {[%clk 0:02:59.9]}
2... Bg7 {[%clk 0:02:57.4]} 3. Nc3 {[%clk 0:02:59.6]} 3... b6 {[%clk 0:02:55]}
4. Be3 {[%clk 0:03:00.5]} 4... Bb7 {[%clk 0:02:54.5]} 5. h4 {[%clk 0:02:56.5]}
5... h6 {[%clk 0:02:52.1]} 6. Qd2 {[%clk 0:02:54.4]} 6... d6 {[%clk 0:02:51.2]}
7. Nf3 {[%clk 0:02:52.5]} 7... Nd7 {[%clk 0:02:49.4]} 8. Bd3 {[%clk 0:02:49.8]}
8... a6 {[%clk 0:02:48]} 9. a4 {[%clk 0:02:46.3]} 9... e6 {[%clk 0:02:47.4]} 10.
Ne2 {[%clk 0:02:31.5]} 10... Ngf6 {[%clk 0:02:45.8]} 11. Ng3 {[%clk 0:02:31.5]}
11... Ng4 {[%clk 0:02:46.5]} 12. h5 {[%clk 0:02:25.7]} 12... g5 {[%clk
0:02:43.7]} 13. c3 {[%clk 0:02:20.3]} 13... Nxe3 {[%clk 0:02:33.9]} 14. Qxe3
{[%clk 0:02:20.3]} 14... O-O {[%clk 0:02:31.1]} 15. O-O {[%clk 0:02:13.8]} 15...
c5 {[%clk 0:02:28]} 16. Rad1 {[%clk 0:02:10.7]} 16... cxd4 {[%clk 0:02:20.3]}
17. cxd4 {[%clk 0:02:11.6]} 17... Rc8 {[%clk 0:02:20.5]} 18. Nh2 {[%clk
0:01:50.7]} 18... Qf6 {[%clk 0:02:09.3]} 19. Bb1 {[%clk 0:01:38.1]} 19... Rc4
{[%clk 0:02:03.6]} 20. b3 {[%clk 0:01:28.4]} 20... Rb4 {[%clk 0:01:52.4]} 21.
Ng4 {[%clk 0:01:22.6]} 21... Qf4 {[%clk 0:01:51.7]} 22. Qxf4 {[%clk 0:01:16]}
22... gxf4 {[%clk 0:01:52.6]} 23. Ne2 {[%clk 0:01:15.7]} 23... Nf6 {[%clk
0:01:29.8]} 24. Nxf6+ {[%clk 0:01:11.3]} 24... Bxf6 {[%clk 0:01:30.7]} 25. Nxf4
{[%clk 0:01:02]} 25... Rc8 {[%clk 0:01:31.2]} 26. Rd3 {[%clk 0:00:52.2]} 26...
Rxd4 {[%clk 0:01:25.3]} 27. Rfd1 {[%clk 0:00:41.6]} 27... Rxe4 {[%clk
0:01:12.8]} 28. Rg3+ {[%clk 0:00:38.8]} 28... Kf8 {[%clk 0:01:13.2]} 29. Bxe4
{[%clk 0:00:36]} 29... Bxe4 {[%clk 0:01:14.1]} 30. Ne2 {[%clk 0:00:22.7]} 30...
d5 {[%clk 0:01:09.8]} 31. Rc1 {[%clk 0:00:22.7]} 31... Rc5 {[%clk 0:01:05.2]}
32. b4 {[%clk 0:00:20.3]} 32... Rc4 {[%clk 0:00:55.9]} 33. Rxc4 {[%clk
0:00:20.5]} 33... dxc4 {[%clk 0:00:56.8]} 34. Kf1 {[%clk 0:00:15.7]} 34... Bc6
{[%clk 0:00:46.4]} 35. Nc3 {[%clk 0:00:10.5]} 35... Be5 {[%clk 0:00:34.5]} 36.
Rg4 {[%clk 0:00:06]} 36... b5 {[%clk 0:00:29.6]} 37. axb5 {[%clk 0:00:05.4]}
37... axb5 {[%clk 0:00:30.5]} 38. Nd1 {[%clk 0:00:04.9]} 38... Bd6 {[%clk
0:00:08.5]} 39. Ke2 {[%clk 0:00:05]} 39... Bxb4 {[%clk 0:00:08.9]} 40. Ne3
{[%clk 0:00:04.7]} 40... Bc5 {[%clk 0:00:08.6]} 41. Kd1 {[%clk 0:00:02.6]} 41...
Bd6 {[%clk 0:00:03.4]} 42. Rd4 {[%clk 0:00:02]} 42... Ke7 {[%clk 0:00:03.1]} 43.
Kc2 {[%clk 0:00:01.6]} 43... f5 {[%clk 0:00:02.9]} 44. Rd1 {[%clk 0:00:01.6]}
44... Bc5 {[%clk 0:00:03]} 45. g3 {[%clk 0:00:01.4]} 45... Bf3 {[%clk 0:00:02]}
46. Re1 {[%clk 0:00:01.9]} 46... Be4+ {[%clk 0:00:02.4]} 47. Kc3 {[%clk
0:00:01.7]} 47... Kd6 {[%clk 0:00:02.9]} 48. Nc2 {[%clk 0:00:01.8]} 48... Kc6
{[%clk 0:00:02.7]} 49. Nb4+ {[%clk 0:00:02.2]} 49... Kd6 {[%clk 0:00:03.2]} 50.
Nc2 {[%clk 0:00:02.5]} 50... Bxf2 {[%clk 0:00:03]} 51. Rd1+ {[%clk 0:00:02.3]}
51... Kc5 {[%clk 0:00:03.5]} 52. Nb4 {[%clk 0:00:02.1]} 52... Bxg3 {[%clk
0:00:03.6]} 53. Na6+ {[%clk 0:00:02.6]} 53... Kb6 {[%clk 0:00:04.2]} 54. Rd6+
{[%clk 0:00:02.5]} 54... Bxd6 {[%clk 0:00:04.3]} 0-1